bitfinex/quotes_SOLUSD_20220114
["timestamp","ask_amount","ask_price","bid_price","bid_amount"]
[1642119047080,14.4164536,146.36,146.25,95.30329521]
[1642119047677,0.25,146.36,146.25,95.30329521]
[1642119047875,0.25,146.36,146.28,10.2518]
[1642119048080,4.1633536,146.37,146.28,10.5018]
[1642119048280,4.1633536,146.37,146.28,0.25]
[1642119048488,6.8963536,146.37,146.26,2.734]
[1642119048691,8.22,146.36,146.26,2.734]
[1642119048886,2.733,146.35,146.22,14.06163359]
[1642119049086,8.983,146.35,146.22,14.31163359]
[1642119049489,23.92599882,146.34,146.23,27.82862613]
[1642119049689,2.734,146.33,146.23,27.82862613]
[1642119049890,2.734,146.33,146.23,28.07862613]
[1642119050189,10.2562,146.31,146.23,28.07862613]
[1642119050392,9.244,146.33,146.23,28.07862613]
[1642119050615,6.25,146.33,146.23,28.07862613]
[1642119050815,6.25,146.33,146.23,28.33862613]
[1642119050816,6.51,146.33,146.23,28.33862613]
[1642119051220,0.51,146.33,146.23,28.33862613]
[1642119051416,10.7651,146.33,146.23,28.33862613]
[1642119051618,10.2551,146.33,146.23,28.33862613]
[1642119051817,2.734,146.32,146.23,28.33862613]
[1642119052017,3.244,146.32,146.23,28.33862613]
[1642119052419,0.25,146.32,146.23,38.59392613]
[1642119052619,2.734,146.33,146.23,40.24392134]
[1642119052819,2.984,146.33,146.23,48.46392134]
[1642119053018,2.734,146.33,146.23,54.46392134]
[1642119053225,3.9133536,146.35,146.24,71.404]
[1642119053421,3.9133536,146.35,146.26,30.19071839]
[1642119053619,3.9133536,146.35,146.29,10.2509]
[1642119053822,3.9133536,146.35,146.3,27.02557241]
[1642119054019,3.9133536,146.35,146.3,27.27557241]
[1642119054220,3.9133536,146.37,146.3,27.27557241]
[1642119054820,4.1733536,146.37,146.3,27.27557241]
[1642119055222,3.9133536,146.38,146.3,37.52617241]
[1642119055420,3.9133536,146.38,146.3,108.10616762]
[1642119055822,3.9133536,146.38,146.3,116.32616762]
[1642119056022,3.9133536,146.39,146.3,122.32616762]
[1642119056725,5.36e-05,146.39,146.3,122.32616762]
[1642119056924,5.36e-05,146.39,146.3,133.30225561]
[1642119057124,2.733,146.46,146.3,133.30225561]
[1642119057325,10.56022941,146.46,146.31,2.732]
[1642119057526,16.56022941,146.46,146.38,10.243]
[1642119057725,13.82722941,146.46,146.39,25.45800241]
[1642119057926,7.82722941,146.46,146.4,68.67]
[1642119058126,7.82722941,146.46,146.41,2.731]
[1642119058526,9.82640285,146.52,146.42,10.2411]
[1642119058727,2.73,146.51,146.42,10.2411]
[1642119058929,2.731,146.52,146.42,40.9448373]
[1642119059229,8.731,146.52,146.42,30.7037373]
[1642119059429,3.241,146.52,146.42,30.7037373]
[1642119059630,19.4825,146.52,146.4,10.2431]
[1642119059827,37.14690743,146.52,146.36,2.731]
[1642119060026,37.14690743,146.52,146.36,4.53837465]
[1642119060226,105.81690743,146.52,146.36,0.25]
[1642119060626,105.81690743,146.52,146.36,25.94707862]
[1642119060829,7.82440743,146.51,146.38,10.2447]
[1642119061030,18.5124162,146.5,146.39,24.14444104]
[1642119061426,24.7624162,146.5,146.39,24.14444104]
[1642119062228,35.2653162,146.5,146.4,10.2429]
[1642119062628,9.241,146.5,146.4,10.4929]
[1642119063031,9.241,146.5,146.4,10.7529]
[1642119063432,19.2237,146.5,146.4,10.4929]
[1642119063636,43.26020791,146.5,146.4,0.25]
[1642119063834,43.26020791,146.5,146.36,12.571]
[1642119064032,43.26020791,146.5,146.36,9.84]
[1642119064033,9.84,146.49,146.36,9.84]
[1642119064237,2.731,146.48,146.32,12.571]
[1642119064432,12.571,146.48,146.32,9.84]
[1642119064634,10.2481,146.43,146.3,2.732]
[1642119064833,23.73950103,146.42,146.31,24.17933986]
[1642119065033,29.98950103,146.42,146.31,24.17933986]
[1642119065433,38.43950103,146.42,146.31,24.17933986]
[1642119065636,13.69748981,146.49,146.34,132.462]
[1642119065836,12.55840285,146.58,146.48,10.51030271]
[1642119066137,9.82640285,146.58,146.48,10.51030271]
[1642119066336,9.82640285,146.58,146.51,3.75352635]
[1642119066533,28.59608824,146.55,146.51,3.75352635]
[1642119067333,34.59608824,146.55,146.51,3.75352635]
[1642119067935,77.729,146.54,146.44,2.729]
[1642119068135,2.729,146.54,146.44,2.729]
[1642119068334,8.729,146.54,146.44,2.729]
[1642119068936,8.989,146.54,146.44,2.729]
[1642119069136,8.989,146.54,146.43,8.19]
[1642119069367,8.989,146.54,146.43,8.44]
[1642119070037,8.989,146.54,146.44,23.08617372]
[1642119070235,8.989,146.54,146.44,33.32767372]
[1642119070435,9.239,146.54,146.44,39.57767372]
[1642119070839,9.239,146.54,146.45,8.19]
[1642119071037,6.51,146.54,146.45,8.7]
[1642119071440,11.56268578,146.7,146.55,1.64999521]
[1642119071637,11.56268578,146.7,146.57,2.08289457]
[1642119071841,14.29068578,146.7,146.62,10.69099999]
[1642119072036,11.56268578,146.7,146.63,8.19]
[1642119072436,27.0986594,146.68,146.63,18.668]
[1642119072638,27.0986594,146.68,146.63,8.44]
[1642119072838,27.0986594,146.68,146.63,8.19]
[1642119073041,33.0986594,146.68,146.59,8.19]
[1642119073237,33.0986594,146.68,146.57,2.08289457]
[1642119073238,2.727,146.67,146.57,2.08289457]
[1642119073438,10.2349,146.66,146.57,2.08289457]
[1642119073638,24.99164475,146.64,146.57,2.08289457]
[1642119074037,30.99164475,146.64,146.57,2.08289457]
[1642119074239,30.99164475,146.64,146.58,8.19]
[1642119074443,31.24164475,146.64,146.58,8.44]
[1642119074638,31.24164475,146.64,146.59,10.231]
[1642119074839,31.24164475,146.64,146.57,2.08289457]
[1642119075239,30.99164475,146.64,146.57,2.08289457]
[1642119075838,31.25164475,146.64,146.57,12.31539457]
[1642119076439,31.25164475,146.64,146.57,12.56539457]
[1642119076641,30.99164475,146.64,146.57,12.56539457]
[1642119076870,30.99164475,146.64,146.57,12.82539457]
[1642119077345,30.99164475,146.64,146.57,10.7425]
[1642119077544,30.99164475,146.64,146.58,25.95018719]
[1642119077944,6.26,146.64,146.6,10.2301]
[1642119078445,6.26,146.64,146.6,10.4801]
[1642119078645,6.0,146.64,146.6,10.2301]
[1642119079248,18.959,146.71,146.6,10.4801]
[1642119079444,26.73961766,146.7,146.6,10.4801]
[1642119079649,2.227,146.69,146.6,10.4801]
[1642119080045,8.737,146.69,146.6,10.4801]
[1642119080647,8.737,146.69,146.58,10.2313]
[1642119080846,8.737,146.69,146.56,0.25]
[1642119081048,1.64999521,146.68,146.56,0.25]
[1642119081250,10.918,146.67,146.54,2.727]
[1642119081446,24.51358164,146.66,146.54,2.727]
[1642119081646,10.2363,146.62,146.54,2.727]
[1642119081848,27.52841184,146.61,146.54,2.727]
[1642119082048,41.96841184,146.61,146.45,8.19]
[1642119082249,43.87840705,146.61,146.45,8.19]
[1642119082448,43.87840705,146.61,146.44,46.503]
[1642119082748,1.64999521,146.6,146.44,46.503]
[1642119082948,22.87672302,146.58,146.43,23.69957852]
[1642119083150,10.2405,146.56,146.44,10.2416]
[1642119083349,22.94890709,146.55,146.44,12.9716]
[1642119083551,29.19890709,146.55,146.44,13.2216]
[1642119085188,29.19890709,146.55,146.44,12.9716]
[1642119085488,2.73,146.54,146.44,12.9716]
[1642119085888,8.98,146.54,146.44,2.73]
[1642119086089,6.25,146.54,146.44,2.73]
[1642119086388,29.52327574,146.52,146.44,2.73]
[1642119086589,2.73,146.51,146.44,2.73]
[1642119086990,9.24,146.51,146.44,2.73]
[1642119087191,10.2447,146.5,146.44,2.73]
[1642119087401,23.4408159,146.49,146.44,2.73]
[1642119087591,29.6908159,146.49,146.44,2.73]
[1642119087992,29.9508159,146.49,146.44,2.73]
[1642119088195,29.9508159,146.49,146.35,34.1488]
[1642119088196,2.731,146.48,146.34,10.2482]
[1642119088391,8.19,146.47,146.3,42.3505]
[1642119088591,71.402,146.46,146.31,2.732]
[1642119088794,28.83218799,146.45,146.31,2.732]
[1642119088994,2.732,146.44,146.3,8.19]
[1642119089392,9.242,146.44,146.3,8.19]
[1642119089791,9.242,146.44,146.31,27.57751723]
[1642119089993,9.242,146.44,146.3,8.19]
[1642119090192,8.19,146.43,146.3,10.2507]
[1642119090393,2.732,146.42,146.3,10.2507]
[1642119090595,8.982,146.42,146.3,10.2507]
[1642119090997,25.34359646,146.41,146.28,2.732]
[1642119091197,2.733,146.4,146.28,27.40872637]
[1642119091494,6.25,146.4,146.28,37.92082637]
[1642119091695,6.25,146.4,146.28,37.66082637]
[1642119092096,6.25,146.4,146.28,12.9841]
[1642119092297,6.25,146.4,146.28,13.2341]
[1642119092298,0.25,146.4,146.28,13.2341]
[1642119092498,16.5013,146.4,146.28,13.2341]
[1642119092697,16.2513,146.4,146.28,13.2341]
[1642119092899,16.5013,146.4,146.28,13.2341]
[1642119094501,16.7613,146.4,146.28,13.2341]
[1642119095201,16.5013,146.4,146.28,13.2341]
[1642119095502,6.25,146.4,146.29,8.19]
[1642119095702,6.25,146.4,146.34,10.2484]
[1642119096006,0.25,146.4,146.34,10.2484]
[1642119096201,0.25,146.4,146.3,60.51195687]
[1642119096502,25.85359646,146.41,146.3,0.25]
[1642119096801,31.85359646,146.41,146.3,0.25]
[1642119097101,2.733,146.4,146.3,0.25]
[1642119097603,9.243,146.4,146.28,13.2341]
[1642119097801,9.243,146.4,146.28,10.5021]
[1642119098203,10.2523,146.39,146.28,10.5021]
[1642119098403,25.48936507,146.38,146.28,10.5021]
[1642119098604,25.48936507,146.38,146.26,12.9868]
[1642119098804,2.733,146.37,146.23,2.733]
[1642119099003,8.983,146.37,146.21,8.19]
[1642119099204,8.983,146.37,146.19,24.848]
[1642119099205,10.2556,146.34,146.22,2.734]
[1642119099406,2.734,146.33,146.19,24.848]
[1642119099603,30.68638536,146.32,146.24,3.4207995]
[1642119099804,2.734,146.31,146.24,3.4207995]
[1642119100003,8.984,146.31,146.24,3.4207995]
[1642119100210,9.244,146.31,146.24,3.4207995]
[1642119100604,8.994,146.31,146.24,3.4207995]
[1642119100803,8.994,146.31,146.24,0.25]
[1642119101007,8.994,146.31,146.21,28.14064706]
[1642119101008,2.734,146.31,146.21,28.14064706]
[1642119101205,30.68638536,146.32,146.21,0.25]
[1642119101405,2.734,146.31,146.21,0.25]
[1642119101805,8.734,146.31,146.21,0.25]
[1642119102004,19.2416,146.31,146.21,0.25]
[1642119102205,19.5016,146.31,146.21,0.25]
[1642119102408,19.5016,146.31,146.2,23.02219849]
[1642119102707,19.5016,146.31,146.2,23.27219849]
[1642119102906,19.5016,146.31,146.2,0.25]
[1642119103144,19.5016,146.31,146.18,10.2594]
[1642119103309,8.19,146.3,146.17,2.734]
[1642119103606,10.2626,146.24,146.17,2.234]
[1642119103808,26.97409932,146.23,146.17,2.234]
[1642119104010,33.22409932,146.23,146.17,2.234]
[1642119104207,33.48409932,146.23,146.17,2.234]
[1642119106209,43.74749932,146.23,146.17,2.234]
[1642119106611,51.93749932,146.23,146.17,2.234]
[1642119106811,51.93749932,146.23,146.09,48.4096]
[1642119107012,57.61249932,146.23,146.07,22.9321]
[1642119107310,57.61249932,146.23,146.05,15.60061106]
[1642119107511,57.61249932,146.23,146.05,8.19]
[1642119107714,57.61249932,146.23,146.05,30.84573233]
[1642119108114,51.93749932,146.23,146.06,10.2682]
[1642119108311,51.93749932,146.23,146.06,14.025365]
[1642119108912,51.93749932,146.23,146.06,14.275365]
[1642119109314,51.93749932,146.23,146.06,14.025365]
[1642119109711,51.93749932,146.23,146.08,27.76304399]
[1642119109712,51.42749932,146.23,146.08,27.76304399]
[1642119110516,51.42749932,146.23,146.09,3.757165]
[1642119110912,51.42749932,146.23,146.09,4.007165]
[1642119111211,45.68749932,146.23,146.09,14.272965]
[1642119111412,45.42749932,146.23,146.09,14.272965]
[1642119111614,2.736,146.28,146.1,78.50999521]
[1642119111812,2.736,146.28,146.1,96.46028599]
[1642119112011,2.736,146.28,146.11,1.64999521]
[1642119112212,81.2969,146.29,146.16,10.2604]
[1642119112412,78.5609,146.29,146.16,10.2604]
[1642119112613,78.5609,146.29,146.17,24.85506118]
[1642119112614,31.03919541,146.28,146.17,24.85506118]
[1642119112816,2.735,146.27,146.17,24.85506118]
[1642119113013,3.245,146.27,146.17,25.10506118]
[1642119113419,3.245,146.27,146.2,10.258]
[1642119113619,3.245,146.27,146.2,37.56783609]
[1642119113823,2.985,146.27,146.2,37.56783609]
[1642119114022,0.25,146.27,146.2,37.81783609]
[1642119114419,2.985,146.29,146.2,37.81783609]
[1642119114619,0.25,146.29,146.2,43.81783609]
[1642119115019,2.735,146.3,146.2,43.81783609]
[1642119115322,2.735,146.3,146.2,10.508]
[1642119115518,8.19,146.29,146.18,10.2593]
[1642119115720,2.735,146.28,146.18,10.2593]
[1642119116320,29.71004787,146.28,146.19,31.48802868]
[1642119116520,26.71504787,146.28,146.21,10.2577]
[1642119117122,26.96504787,146.28,146.21,10.2577]
[1642119117524,0.25,146.28,146.22,25.19683273]
[1642119118348,2.985,146.3,146.22,25.19683273]
[1642119118548,30.48341662,146.3,146.22,25.19683273]
[1642119118749,2.735,146.3,146.22,35.45393273]
[1642119118951,24.7131,146.37,146.22,35.96393273]
[1642119118952,2.734,146.34,146.22,35.96393273]
[1642119119149,32.9031,146.37,146.22,35.70393273]
[1642119119150,2.734,146.35,146.22,35.70393273]
[1642119119350,6.0,146.34,146.22,35.70393273]
[1642119119549,2.734,146.33,146.22,35.70393273]
[1642119119849,10.2562,146.33,146.22,10.2571]
[1642119120049,79.594,146.32,146.2,10.2579]
[1642119120251,81.24399521,146.32,146.15,2.734]
[1642119120452,189.92399521,146.32,146.11,2.735]
[1642119120658,1.64999521,146.31,146.1,48.2744]
[1642119120850,188.274,146.32,146.13,34.2007]
[1642119120851,10.259,146.29,146.13,34.2007]
[1642119121051,25.33143924,146.27,146.14,25.75392031]
[1642119121251,25.33143924,146.27,146.14,36.01612031]
[1642119121454,25.58143924,146.27,146.14,42.26612031]
[1642119122053,25.58143924,146.27,146.14,42.52612031]
[1642119122255,25.58143924,146.27,146.15,3.77957822]
[1642119122454,25.58143924,146.27,146.15,7.02457822]
[1642119122654,25.58143924,146.27,146.18,28.18454626]
[1642119122853,0.51,146.27,146.18,28.18454626]
[1642119123055,9.245,146.28,146.18,28.43454626]
[1642119123254,6.0,146.28,146.18,28.43454626]
[1642119123454,2.735,146.34,146.19,71.405]
[1642119123653,10.255,146.35,146.2,18.4483]
[1642119123854,23.73900172,146.34,146.21,31.2295592]
[1642119124053,23.73900172,146.34,146.21,71.9214592]
[1642119124453,23.99900172,146.34,146.21,71.9214592]
[1642119124855,23.98900172,146.34,146.22,3.77957822]
[1642119125058,26.72300172,146.34,146.22,4.02957822]
[1642119125254,42.97850172,146.34,146.22,3.77957822]
[1642119125455,68.67,146.33,146.22,3.77957822]
[1642119125655,10.924,146.32,146.22,3.77957822]
[1642119125854,68.67,146.31,146.23,3.77957822]
[1642119126055,10.924,146.3,146.23,3.77957822]
[1642119126453,26.56091698,146.29,146.23,3.77957822]
[1642119126655,2.734,146.28,146.23,3.77957822]
[1642119126854,2.734,146.28,146.21,2.734]
[1642119127056,3.244,146.28,146.21,2.734]
[1642119127654,13.5035,146.28,146.21,2.734]
[1642119127855,3.244,146.28,146.21,2.734]
[1642119129055,3.244,146.28,146.2,10.2584]
[1642119129254,3.244,146.28,146.21,24.44666229]
[1642119129455,0.51,146.28,146.21,24.44666229]
[1642119129856,2.735,146.32,146.22,10.2571]
[1642119130058,8.985,146.32,146.22,10.5071]
[1642119130259,2.985,146.32,146.22,10.7671]
[1642119130457,8.735,146.32,146.22,10.7671]
[1642119130761,6.0,146.32,146.22,13.5011]
[1642119130961,28.44981835,146.33,146.22,19.5011]
[1642119131459,28.44981835,146.33,146.23,3.91516762]
[1642119131659,28.44981835,146.33,146.24,10.2554]
[1642119132060,38.95621835,146.33,146.23,3.91516762]
[1642119132259,2.734,146.32,146.23,3.91516762]
[1642119132459,77.654,146.32,146.22,2.734]
[1642119132862,77.914,146.32,146.22,2.734]
[1642119133263,10.2577,146.31,146.22,2.734]
[1642119133561,24.1945202,146.29,146.22,2.734]
[1642119133761,30.0575202,146.29,146.22,2.734]
[1642119133965,10.924,146.28,146.16,5.87467215]
[1642119134172,68.67,146.27,146.16,5.87467215]
[1642119134369,10.2623,146.25,146.16,5.87467215]
[1642119134569,68.67,146.23,146.16,5.87467215]
[1642119134769,2.736,146.22,146.16,5.87467215]
[1642119134970,8.986,146.22,146.16,5.87467215]
[1642119135172,9.246,146.22,146.13,10.2632]
[1642119135568,9.246,146.22,146.13,10.5132]
[1642119136172,19.5098,146.22,146.13,10.5132]
[1642119136971,19.5098,146.22,146.16,1.95889584]
[1642119138573,10.2663,146.19,146.16,1.95889584]
[1642119138776,8.80039994,146.18,146.16,1.95889584]
[1642119138977,6.31439994,146.18,146.16,1.95889584]
[1642119139277,30.88268101,146.17,146.16,1.95889584]
[1642119139483,30.88268101,146.17,146.14,1.95889584]
[1642119139484,31.39268101,146.17,146.14,1.95889584]
[1642119139878,6.06439994,146.16,146.14,1.95889584]
[1642119140078,6.57439994,146.16,146.14,1.95889584]
[1642119141282,16.84209994,146.16,146.14,1.95889584]
[1642119141480,8.19,146.15,146.12,0.00931993]
[1642119141679,3.03219997,146.14,146.12,0.00931993]
[1642119141881,70.737,146.13,146.12,0.00931993]
[1642119142080,104.5666876,146.13,146.12,0.00931993]
[1642119142284,107.59888757,146.13,146.12,0.00931993]
[1642119142480,107.59888757,146.13,146.08,3.91779168]
[1642119142481,115.78888757,146.13,146.08,3.91779168]
[1642119142681,115.78888757,146.13,146.06,3.91779168]
[1642119143289,126.06128757,146.13,146.06,3.91779168]
[1642119144188,57.80128757,146.13,146.06,3.91779168]
[1642119144611,55.06428757,146.13,146.06,3.91779168]
[1642119145012,55.06428757,146.13,146.03,33.27175213]
[1642119145211,13.0086,146.12,146.03,0.25]
[1642119145415,13.2586,146.12,146.02,9.79246383]
[1642119145616,27.7086,146.12,146.02,9.79246383]
[1642119145816,68.67,146.11,146.02,9.79246383]
[1642119146013,2.738,146.1,146.02,9.79246383]
[1642119146212,10.2739,146.07,146.04,3.91779168]
[1642119146414,8.80239994,146.06,146.04,9.168e-05]
[1642119146613,74.73439994,146.06,146.04,9.168e-05]
[1642119146914,86.67439994,146.06,146.04,9.168e-05]
[1642119147114,44.0,146.05,146.02,2.88907894]
[1642119147313,10.278,146.03,146.02,2.88907894]
[1642119147514,22.59239994,146.03,146.01,0.00070917]
[1642119147814,48.739,146.02,146.01,0.00070917]
[1642119148014,54.989,146.02,146.01,0.00070917]
[1642119148619,142.1289,146.02,146.01,0.00070917]
[1642119148918,25.0,146.0,145.96,2.738]
[1642119149115,28.40839204,145.98,145.96,2.738]
[1642119149318,6.06439994,145.97,145.96,2.738]
[1642119149521,12.31439994,145.97,145.96,2.738]
[1642119150519,12.31439994,145.97,145.87,80.12023992]
[1642119150721,12.31439994,145.97,145.87,78.27609328]
[1642119151126,22.59619994,145.97,145.87,78.27609328]
[1642119151423,22.59619994,145.97,145.87,67.99489328]
[1642119151624,22.85619994,145.97,145.87,67.99489328]
[1642119151822,27.88174416,145.95,145.88,7.84414664]
[1642119152030,28.39174416,145.95,145.88,31.03598386]
[1642119152223,0.26,145.95,145.88,31.03598386]
[1642119152423,10.931,146.01,145.88,31.03598386]
[1642119152629,0.25,145.97,145.88,48.96687907]
[1642119152826,0.25,145.97,145.88,49.21687907]
[1642119153027,0.25,145.97,145.89,7.84414664]
[1642119153227,24.11560738,146.0,145.89,7.84414664]
[1642119153528,24.36560738,146.0,145.9,10.2792]
[1642119153724,0.25,146.0,145.9,13.0192]
[1642119153925,0.25,146.0,145.9,21.17919521]
[1642119154125,6.0,146.01,145.9,21.17919521]
[1642119154329,2.74,146.05,145.9,29.36919521]
[1642119154525,0.25,146.05,145.9,35.97730868]
[1642119154825,25.38954387,146.05,145.97,10.2743]
[1642119155027,25.38954387,146.05,145.97,10.5243]
[1642119155424,25.64954387,146.05,145.97,10.5243]
[1642119155626,35.92474387,146.05,145.92,60.0564]
[1642119155825,2.74,146.04,145.92,57.3174]
[1642119156025,17.44,146.04,145.92,49.3774]
[1642119156227,17.44,146.04,145.92,0.25]
[1642119157028,17.44,146.04,145.91,10.5282]
[1642119157230,10.278,146.02,145.91,18.12152186]
[1642119157428,30.03262766,146.0,145.91,7.84332186]
[1642119157628,2.74,145.99,145.91,7.84332186]
[1642119158029,3.25,145.99,145.91,7.84332186]
[1642119158228,68.67,145.98,145.91,7.84332186]
[1642119158428,2.74,145.97,145.91,7.84332186]
[1642119158932,3.25,145.97,145.91,7.84332186]
[1642119159128,3.25,145.97,145.88,7.84332186]
[1642119159329,22.68137453,145.96,145.88,7.84332186]
[1642119159528,23.19137453,145.96,145.88,8.09332186]
[1642119159729,22.94137453,145.96,145.88,8.09332186]
[1642119159929,23.19137453,145.96,145.88,8.09332186]
[1642119160429,23.19137453,145.96,145.88,7.84332186]
[1642119160631,23.19137453,145.96,145.88,18.12432186]
[1642119160828,23.19137453,145.96,145.88,7.84332186]
[1642119161030,29.19137453,145.96,145.88,7.84332186]
[1642119161229,2.741,145.95,145.88,7.84332186]
[1642119161532,3.251,145.95,145.88,7.84332186]
[1642119161930,3.251,145.95,145.86,23.53245824]
[1642119162130,25.5056579,145.93,145.86,23.78245824]
[1642119162532,26.0156579,145.93,145.86,23.78245824]
[1642119163334,26.0156579,145.93,145.86,8.09332186]
[1642119163335,0.51000001,145.93,145.86,8.09332186]
[1642119163534,16.7933,145.94,145.86,8.09332186]
[1642119163732,16.5333,145.94,145.86,8.09332186]
[1642119165035,16.7933,145.94,145.86,8.09332186]
[1642119166434,16.7933,145.94,145.86,7.84332186]
[1642119166836,10.287,145.9,145.86,7.84332186]
[1642119167038,2.741,145.89,145.86,7.84332186]
[1642119167336,14.25439994,145.88,145.86,7.84332186]
[1642119167537,69.95534386,145.87,145.86,7.84332186]
[1642119167736,69.95534386,145.87,145.84,7.84332186]
[1642119167936,76.46534386,145.87,145.84,7.84332186]
[1642119168337,86.75514386,145.87,145.84,7.84332186]
[1642119168537,3.03219997,145.86,145.84,7.84332186]
[1642119168739,42.742,145.85,145.84,7.84332186]
[1642119168936,48.992,145.85,145.84,7.84332186]
[1642119169137,48.992,145.85,145.8,0.34280299]
[1642119169138,27.00346177,145.84,145.8,0.34280299]
[1642119169335,13.0344,145.83,145.8,0.34280299]
[1642119169536,13.2844,145.83,145.8,0.34280299]
[1642119169737,3.03219997,145.82,145.8,0.34280299]
[1642119169938,18.21334386,145.81,145.8,0.34280299]
[1642119170340,24.72334386,145.81,145.8,0.34280299]
[1642119170939,21.75554383,145.81,145.8,0.34280299]
[1642119171141,24.49854383,145.81,145.8,0.34280299]
[1642119171442,30.49854383,145.81,145.73,30.95481991]
[1642119171645,55.97344383,145.81,145.73,30.95481991]
[1642119172738,55.97344383,145.81,145.71,15.28964302]
[1642119172739,55.97344383,145.81,145.7,17.99693292]
[1642119174140,55.97344383,145.81,145.7,2.743]
[1642119174442,68.67,145.8,145.7,2.743]
[1642119174641,10.2951,145.78,145.67,38.4548756]
[1642119174840,2.744,145.77,145.67,44.7048756]
[1642119175140,0.25,145.77,145.67,41.7088756]
[1642119175340,2.744,145.8,145.68,19.78841707]
[1642119175541,42.69644386,145.81,145.7,24.83873915]
[1642119175942,42.69644386,145.81,145.7,25.08873915]
[1642119176141,36.69644386,145.81,145.7,25.08873915]
[1642119176344,8.19,145.81,145.71,10.2925]
[1642119176542,2.744,145.85,145.71,103.15581707]
[1642119176741,2.744,145.85,145.72,1.64999521]
[1642119176951,10.2891,145.87,145.73,34.2958]
[1642119177243,26.99772168,145.86,145.74,27.27445575]
[1642119177444,32.99772168,145.86,145.77,10.2888]
[1642119177844,33.25772168,145.86,145.77,10.5388]
[1642119178046,32.99772168,145.86,145.77,10.5388]
[1642119179047,33.24772168,145.86,145.77,10.2888]
[1642119179247,43.53742168,145.86,145.75,18.13302186]
[1642119179450,68.67,145.85,145.75,18.38302186]
[1642119179648,2.743,145.84,145.75,18.38302186]
[1642119180049,2.993,145.84,145.75,18.38302186]
[1642119180251,0.25,145.84,145.75,16.67630422]
[1642119180649,10.933,145.9,145.76,2.743]
[1642119180861,10.933,145.9,145.76,10.933]
[1642119181058,2.743,145.9,145.82,10.2847]
[1642119181356,2.742,145.94,145.82,10.2847]
[1642119181555,32.36418357,145.94,145.83,29.45150879]
[1642119181756,2.742,145.94,145.83,29.45150879]
[1642119181960,2.742,145.94,145.83,45.98600879]
[1642119182160,2.741,145.98,145.83,54.17600879]
[1642119182355,2.741,146.0,145.83,54.43600879]
[1642119182560,8.741,146.0,145.83,54.43600879]
[1642119182756,25.16945223,145.99,145.83,54.43600879]
[1642119182956,2.741,145.98,145.83,54.43600879]
[1642119183159,13.0223,145.98,145.83,54.43600879]
[1642119183356,13.2723,145.98,145.83,54.43600879]
[1642119183557,68.67,145.97,145.83,54.43600879]
[1642119183757,22.44555041,145.96,145.83,57.17700879]
[1642119183959,91.36555041,145.96,145.83,56.91700879]
[1642119184157,91.36555041,145.96,145.83,48.17600879]
[1642119184366,99.55555041,145.96,145.83,10.5345]
[1642119184562,110.09825041,145.96,145.83,10.5345]
[1642119184960,116.09825041,145.96,145.83,10.5345]
[1642119185360,116.09825041,145.96,145.82,24.0345]
[1642119185561,1.64999521,145.95,145.82,24.0345]
[1642119185780,10.2866,145.9,145.82,24.0345]
[1642119185984,2.742,145.89,145.78,8.19]
[1642119186182,8.523,145.89,145.77,7.41061106]
[1642119186380,22.963,145.89,145.75,30.90431106]
[1642119186581,73.67,145.88,145.75,7.41061106]
[1642119186781,10.933,145.87,145.75,7.41061106]
[1642119186982,88.37455041,145.86,145.75,7.41061106]
[1642119187185,25.16945223,145.81,145.75,7.41061106]
[1642119187384,2.743,145.8,145.75,7.41061106]
[1642119187582,2.993,145.8,145.7,34.88831106]
[1642119187783,2.993,145.8,145.7,10.15261106]
[1642119187983,9.253,145.8,145.7,10.15261106]
[1642119188484,9.253,145.8,145.7,2.742]
[1642119188684,19.5471,145.8,145.7,2.992]
[1642119189383,19.5471,145.8,145.7,2.742]
[1642119189584,8.19,145.79,145.7,2.742]